bitfinex/quotes_ETHUSD_20230118
["timestamp","ask_amount","ask_price","bid_price","bid_amount"]
[1674060171254,6.74803,1513.0,1512.9,8.28126293]
[1674060171598,0.13865,1513.0,1512.9,8.34726293]
[1674060171819,0.07265,1513.0,1512.9,8.34726293]
[1674060172183,11.7253998,1513.3,1513.0,0.18684004]
[1674060172402,5.1172898,1513.3,1513.2,8.0]
[1674060172646,5.1172898,1513.3,1513.2,11.296]
[1674060173913,5.1172898,1513.3,1513.2,11.33312526]
[1674060177172,3.28125669,1513.3,1513.2,11.33312526]
[1674060177365,3.21525669,1513.3,1513.2,11.33312526]
[1674060177542,3.21525669,1513.3,1513.2,12.10312526]
[1674060177753,3.21525669,1513.3,1513.2,12.066]
[1674060177966,3.21525669,1513.3,1513.2,11.066]
[1674060178170,3.21525669,1513.3,1513.2,0.066]
[1674060178442,16.92709669,1513.3,1513.0,1.25284004]
[1674060178654,16.92709669,1513.3,1513.0,1.18684004]
[1674060178655,7.10447,1513.2,1513.0,1.18684004]
[1674060178806,0.5617,1513.2,1513.0,9.18684004]
[1674060179173,7.10432,1513.2,1513.0,8.25284004]
[1674060179384,0.066,1513.2,1513.0,8.25284004]
[1674060179603,1.99093002,1513.3,1513.0,8.25601735]
[1674060179752,1.99093002,1513.3,1513.2,8.0]
[1674060180116,1.99093002,1513.3,1513.2,11.066]
[1674060180340,1.99093002,1513.3,1513.2,11.06917689]
[1674060180552,1.99093002,1513.3,1513.2,3.06917689]
[1674060180698,1.99093002,1513.3,1513.2,0.00317689]
[1674060180908,1.99093002,1513.3,1513.2,8.00317689]
[1674060181116,1.99093002,1513.3,1513.2,11.06917689]
[1674060181341,1.84093002,1513.3,1513.2,11.06917689]
[1674060182261,0.066,1513.7,1513.3,1.60717573]
[1674060182411,6.60621,1513.8,1513.3,4.60717573]
[1674060182412,5.99900001,1513.6,1513.3,4.60717573]
[1674060182623,6.06500001,1513.6,1513.5,8.0]
[1674060182893,6.06500001,1513.6,1513.5,11.066]
[1674060183255,6.06500001,1513.6,1513.5,3.296]
[1674060183467,6.06500001,1513.6,1513.5,0.23]
[1674060183680,12.67176001,1513.6,1513.5,0.23]
[1674060183911,13.16736001,1513.6,1513.3,8.67317573]
[1674060184150,19.77412001,1513.6,1513.3,8.67317573]
[1674060184802,1.0,1513.5,1513.3,8.67317573]
[1674060184934,1.0,1513.5,1513.0,0.18684004]
[1674060184935,20.31859,1513.4,1513.0,0.18684004]
[1674060185308,20.38459,1513.4,1513.3,0.066]
[1674060185673,1.0,1513.3,1513.0,0.18684004]
[1674060185882,6.60894,1513.1,1513.0,0.18684004]
[1674060186092,6.67494,1513.1,1513.0,0.18684004]
[1674060186342,6.67494,1513.1,1513.0,4.004e-05]
[1674060186554,1.0,1513.0,1512.9,0.28126293]
[1674060186771,1.4958,1513.0,1512.9,0.14656834]
[1674060186985,16.27156,1513.0,1512.7,0.14656834]
[1674060187152,19.83075,1512.8,1512.5,0.066]
[1674060187365,6.61113,1512.6,1512.4,0.14382248]
[1674060187563,6.67713,1512.6,1512.4,0.14382248]
[1674060187783,6.67713,1512.6,1512.4,0.2788472]
[1674060188019,7.89157,1512.5,1512.4,0.2788472]
[1674060188208,7.95757,1512.5,1512.4,0.2788472]
[1674060188417,7.95757,1512.5,1512.4,0.14382248]
[1674060188630,7.95757,1512.5,1512.1,0.14674511]
[1674060188826,1.496,1512.4,1512.1,0.14674511]
[1674060189049,13.22488,1512.3,1512.2,8.0]
[1674060189301,0.066,1512.3,1512.2,8.066]
[1674060189535,0.066,1512.5,1512.2,8.066]
[1674060189822,6.61072,1512.7,1512.2,8.066]
[1674060189823,7.10713,1512.6,1512.4,8.0]
[1674060189986,7.17313,1512.6,1512.5,8.0]
[1674060190192,6.67523,1512.6,1512.5,8.066]
[1674060190406,13.28846,1512.6,1512.5,0.066]
[1674060190614,14.28846,1512.6,1512.2,8.0]
[1674060190864,19.836,1512.4,1512.2,0.0161]
[1674060191076,19.836,1512.4,1512.1,0.28180534]
[1674060191077,14.50488,1512.3,1512.1,0.28180534]
[1674060191264,14.57088,1512.3,1512.1,0.28180534]
[1674060191489,13.78688,1512.3,1512.1,0.28180534]
[1674060191886,4.84101541,1512.3,1512.2,8.0]
[1674060192097,0.066,1512.4,1512.2,9.16436651]
[1674060192330,14.00804,1512.4,1512.3,2.44964373]
[1674060192518,14.57004,1512.4,1512.3,2.44964373]
[1674060192747,15.57004,1512.4,1512.3,2.44964373]
[1674060193155,14.57004,1512.4,1512.3,2.44964373]
[1674060193397,13.78604,1512.4,1512.3,2.44964373]
[1674060193565,13.29004,1512.4,1512.3,2.44964373]
[1674060194132,0.066,1512.4,1512.3,2.44964373]
[1674060194355,6.67777,1512.5,1512.3,5.45721706]
[1674060194554,6.67777,1512.5,1512.4,8.0]
[1674060194731,6.67777,1512.5,1512.4,11.0161]
[1674060195140,13.28954,1512.5,1512.4,0.0161]
[1674060195356,13.28954,1512.5,1512.3,2.44964373]
[1674060195357,13.78554,1512.5,1512.3,2.44964373]
[1674060195561,1.28,1512.4,1512.3,2.44964373]
[1674060195809,14.504,1512.4,1512.3,2.44964373]
[1674060196142,14.57,1512.4,1512.3,2.44964373]
[1674060196368,13.29,1512.4,1512.3,2.44964373]
[1674060196510,13.786,1512.4,1512.3,2.44964373]
[1674060197408,14.786,1512.4,1512.3,2.44964373]
[1674060197811,14.29,1512.4,1512.3,2.44964373]
[1674060198025,21.398,1512.4,1512.3,2.44964373]
[1674060198197,20.398,1512.4,1512.3,2.44964373]
[1674060198672,19.17295838,1512.4,1512.3,2.44964373]
[1674060198876,20.17295838,1512.4,1512.3,2.44964373]
[1674060200456,19.17295838,1512.4,1512.3,2.44964373]
[1674060200702,18.67695838,1512.4,1512.3,2.44964373]
[1674060200881,19.17295838,1512.4,1512.3,2.44964373]
[1674060201195,20.74295838,1512.4,1512.3,2.44964373]
[1674060201568,21.74295838,1512.4,1512.3,2.44964373]
[1674060201907,21.74295838,1512.4,1512.1,0.14674511]
[1674060201908,1.0,1512.3,1512.1,0.14674511]
[1674060202118,29.28762,1512.2,1512.1,0.14674511]
[1674060202312,29.35362,1512.2,1512.1,0.14674511]
[1674060202517,7.956,1512.1,1511.6,0.004856]
[1674060202731,26.45712,1511.9,1511.6,0.004856]
[1674060202958,19.84518,1511.7,1511.6,0.13464779]
[1674060203170,19.91118,1511.7,1511.6,0.004856]
[1674060204206,19.22186501,1511.7,1511.6,0.004856]
[1674060205240,19.22186501,1511.7,1511.5,0.1511719]
[1674060205241,1.0,1511.6,1511.5,0.1511719]
[1674060205495,14.7273,1511.6,1511.5,0.1511719]
[1674060205708,21.7493,1511.6,1511.4,0.14641317]
[1674060205922,1.0,1511.5,1511.4,0.14641317]
[1674060206080,14.23188,1511.5,1511.4,0.14641317]
[1674060206293,13.29788,1511.5,1511.4,0.14641317]
[1674060206622,14.79418,1511.5,1511.4,0.14641317]
[1674060207558,13.29788,1511.5,1511.4,0.14641317]
[1674060207763,13.79418,1511.5,1511.4,0.14641317]
[1674060207988,13.29788,1511.5,1511.4,0.14641317]
[1674060208193,13.79418,1511.5,1511.4,0.14641317]
[1674060208412,0.066,1511.5,1511.4,1.74341317]
[1674060208648,6.61517,1511.7,1511.4,5.74341317]
[1674060208861,13.29652,1511.7,1511.6,8.0]
[1674060209072,6.68117,1511.7,1511.6,8.0161]
[1674060209242,0.066,1511.7,1511.6,8.0161]
[1674060209462,7.103,1511.8,1511.6,11.0161]
[1674060209866,7.103,1511.8,1511.7,3.0]
[1674060210342,13.71763,1511.8,1511.6,0.0161]
[1674060210548,20.33226,1511.8,1511.5,11.0161]
[1674060211284,20.33226,1511.8,1511.5,3.0161]
[1674060211499,1.0,1511.7,1511.4,3.16251317]
[1674060211720,0.4962,1511.7,1511.4,0.14641317]
[1674060212092,19.8465,1511.6,1511.4,0.14641317]
[1674060212270,22.0085,1511.6,1511.4,0.14641317]
[1674060212411,1.4963,1511.5,1511.4,0.14641317]
[1674060212622,13.72818,1511.5,1511.4,0.14641317]
[1674060212869,7.17824,1511.5,1511.4,0.14641317]
[1674060213414,7.17824,1511.5,1511.2,2.106596]
[1674060213415,0.066,1511.5,1511.2,2.106596]
[1674060213580,13.29733,1511.6,1511.2,1.106596]
[1674060213784,13.79363,1511.6,1511.2,1.106596]
[1674060214673,13.29733,1511.6,1511.2,1.106596]
[1674060215699,2.5963,1511.5,1511.2,1.106596]
[1674060215988,19.84914,1511.4,1511.2,1.106596]
[1674060216254,19.91514,1511.4,1511.2,1.106596]
[1674060216404,0.4964,1511.3,1511.2,1.106596]
[1674060216621,6.61681,1511.3,1511.2,1.106596]
[1674060216869,0.066,1511.3,1511.2,1.106596]
[1674060217054,0.066,1511.4,1511.2,1.106596]
[1674060217244,6.68203,1511.5,1511.2,1.106596]
[1674060217454,10.95568709,1511.5,1511.2,1.106596]
[1674060218524,9.72995877,1511.5,1511.2,1.106596]
[1674060219616,0.4963,1511.4,1511.2,1.106596]
[1674060219830,6.61681,1511.3,1511.2,1.106596]
[1674060220039,13.29962,1511.3,1511.2,1.106596]
[1674060220452,19.91643,1511.3,1511.2,1.106596]
[1674060221650,20.91643,1511.3,1511.2,1.106596]
[1674060221810,21.41283,1511.3,1511.2,1.106596]
[1674060222025,28.44583,1511.3,1511.2,1.106596]
[1674060222275,28.44583,1511.3,1510.8,0.15548982]
[1674060222276,30.53083,1511.3,1510.8,0.15548982]
[1674060222464,28.56312,1511.1,1510.8,0.15548982]
[1674060222650,19.85571,1510.9,1510.8,0.15548982]
[1674060222852,20.41821,1510.9,1510.8,0.15548982]
[1674060223068,22.01371,1510.9,1510.8,0.15548982]
[1674060223350,22.51021,1510.9,1510.8,0.15548982]
[1674060223544,30.46621,1510.9,1510.8,0.15548982]
[1674060224491,6.956,1510.7,1510.5,0.0041981]
[1674060224719,29.40824,1510.6,1510.5,0.0041981]
[1674060224852,30.40824,1510.6,1510.5,0.0041981]
[1674060225069,6.956,1510.4,1509.9,0.17108285]
[1674060225279,2.092,1510.1,1509.9,0.15498285]
[1674060225604,7.11931,1510.0,1509.9,0.15498285]
[1674060225813,0.85,1510.0,1509.9,0.15498285]
[1674060226024,7.18466,1510.2,1509.9,8.34198285]
[1674060226275,7.18466,1510.2,1509.9,0.17108285]
[1674060226490,6.68796,1510.2,1510.0,0.15812001]
[1674060226819,0.4968,1510.1,1510.0,0.15812001]
[1674060227199,7.11887,1510.1,1510.0,0.15812001]
[1674060227363,7.12887,1510.1,1510.0,0.15812001]
[1674060227579,7.18487,1510.1,1510.0,0.15812001]
[1674060227731,13.80694,1510.1,1510.0,0.15812001]
[1674060228258,16.90294,1510.1,1510.0,2.001e-05]
[1674060228471,7.956,1510.0,1509.9,0.15498285]
[1674060228679,7.956,1509.9,1509.7,1.106596]
[1674060229048,22.79968,1509.8,1509.7,1.106596]
[1674060229199,1.0,1509.7,1509.4,0.0161]
[1674060229412,24.88744,1509.6,1509.0,0.20966963]
[1674060229731,24.88744,1509.6,1509.0,0.19356963]
[1674060229732,2.096,1509.1,1509.0,0.19356963]
[1674060229940,1.272,1509.4,1509.0,0.19356963]
[1674060229941,6.62633,1509.2,1509.0,0.19356963]
[1674060230191,6.62633,1509.2,1508.8,8.0]
[1674060230192,6.69211,1509.2,1508.8,0.0161]
[1674060230407,6.6269,1509.0,1508.4,8.0]
[1674060230597,0.4971,1508.9,1508.5,1.0]
[1674060231003,7.12461,1508.9,1508.5,1.0]
[1674060231211,7.12461,1508.9,1508.4,8.0161]
[1674060231212,7.19061,1508.9,1508.4,8.0161]
[1674060231420,5.19092265,1508.9,1508.4,8.0161]
[1674060232274,5.19092265,1508.9,1508.4,7.920802]
[1674060232502,6.19092265,1508.9,1508.4,0.066]
[1674060232669,6.19092265,1508.9,1508.2,1.23808014]
[1674060232670,0.066,1508.9,1508.2,1.23808014]
[1674060232885,6.6929,1509.0,1508.4,0.52779655]
[1674060233139,13.32021,1509.0,1508.3,0.52779655]
[1674060233353,13.32021,1509.0,1508.4,1.0]
[1674060233681,13.32021,1509.0,1508.5,0.52779655]
[1674060233986,6.6929,1509.0,1508.5,0.52779655]
[1674060234604,0.066,1509.0,1508.6,0.23]
[1674060234769,0.4971,1509.0,1508.6,0.23]
[1674060234978,6.62699,1509.0,1508.7,0.52779655]
[1674060235242,2.1,1508.9,1508.8,0.23]
[1674060235465,19.88439,1508.8,1508.2,1.106596]
[1674060235608,2.1,1508.5,1508.2,1.106596]
[1674060235812,0.4973,1508.4,1508.2,1.106596]
[1674060236077,7.12651,1508.5,1508.4,0.5664802]
[1674060236250,7.19251,1508.5,1508.4,0.5664802]
[1674060236460,13.82172,1508.5,1508.4,0.5664802]
[1674060236906,15.92172,1508.5,1508.4,0.5664802]
[1674060237455,1.0,1508.4,1508.2,1.106596]
[1674060237608,22.48724,1508.3,1508.2,1.106596]
[1674060237817,1.0,1508.2,1507.9,0.0041746]
[1674060238048,22.55324,1508.3,1507.9,0.0041746]
[1674060238049,6.69598,1508.3,1507.9,0.0041746]
[1674060238388,6.69598,1508.3,1507.9,1.0041746]
[1674060238611,6.62923,1508.5,1507.9,0.0041746]
[1674060238759,6.872,1508.1,1507.9,0.0041746]
[1674060238977,6.938,1508.1,1507.9,0.0041746]
[1674060239391,6.936,1508.1,1507.9,0.0061746]
[1674060239601,6.788,1508.1,1507.9,0.0041746]
[1674060240080,1.0,1508.0,1507.9,8.0041746]
[1674060240245,6.788,1508.1,1507.9,0.0701746]
[1674060240456,6.788,1508.1,1508.0,8.0]
[1674060240813,6.788,1508.1,1508.0,1.037]
[1674060241003,6.788,1508.1,1508.0,0.971]
[1674060241174,4.37781835,1508.1,1508.0,1.971]
[1674060241390,0.066,1508.2,1508.0,8.60229]
[1674060241595,3.89300001,1508.5,1508.1,9.0]
[1674060241858,3.89300001,1508.5,1508.1,15.69686]
[1674060242033,3.89300001,1508.5,1508.1,22.32772]
[1674060242237,3.89300001,1508.5,1508.1,7.69686]
[1674060242456,3.89300001,1508.5,1508.2,1.0]
[1674060242798,0.4973,1508.4,1508.2,1.0]
[1674060242984,7.12694,1508.4,1508.2,1.0]
[1674060243198,7.19294,1508.4,1507.9,0.0041746]
[1674060243404,6.63042,1508.2,1507.9,0.0041746]
[1674060243618,0.4974,1508.1,1507.9,0.0041746]
[1674060244173,13.06814221,1508.1,1507.9,0.0041746]
[1674060244335,14.63154221,1508.1,1507.9,0.0041746]
[1674060244545,13.63154221,1508.1,1507.9,0.0041746]
[1674060244955,14.13414221,1508.1,1507.9,0.0041746]
[1674060245388,0.4974,1508.0,1507.9,0.0041746]
[1674060245592,13.75998,1508.0,1507.9,0.0041746]
[1674060245797,4.33540001,1508.0,1507.9,0.0041746]
[1674060246006,3.77200001,1508.0,1507.9,0.0041746]
[1674060246270,4.77200001,1508.0,1507.9,0.0041746]
[1674060247023,18.03458001,1508.0,1507.9,0.0041746]
[1674060247230,18.59798001,1508.0,1507.9,0.0041746]
[1674060247536,1.48968892,1508.0,1507.9,0.0041746]
[1674060247749,1.42368892,1508.0,1507.9,0.0041746]
[1674060247919,9.55237892,1508.0,1507.9,0.0041746]
[1674060248108,16.24966892,1508.0,1507.9,0.0041746]
[1674060248757,16.24966892,1508.0,1507.9,0.0001746]
[1674060248758,26.39852581,1508.0,1507.9,0.0001746]
[1674060248968,33.02981581,1508.0,1507.9,0.0001746]
[1674060249514,6.956,1507.8,1507.5,0.32434298]
[1674060249883,19.89783,1507.7,1507.5,0.32434298]
[1674060250061,2.1,1507.6,1506.7,6.63679]
[1674060250231,2.1,1507.6,1507.0,0.014]
[1674060250232,2.084,1507.3,1507.0,0.014]
[1674060250448,26.85872,1507.4,1505.6,0.68854731]
[1674060250449,2.1,1507.1,1505.6,0.68854731]
[1674060250792,3.0,1506.5,1505.8,0.265335]
[1674060251011,12.0,1506.9,1505.8,0.265335]
[1674060251012,2.06624583,1505.9,1505.8,0.265335]
[1674060251159,26.55528,1506.3,1505.9,1.34701132]
[1674060251160,0.042,1506.2,1505.9,1.34701132]
[1674060251371,0.4981,1506.1,1505.9,1.34701132]
[1674060251628,19.9203,1506.0,1505.9,1.34701132]
[1674060251816,20.4844,1506.0,1505.9,1.34701132]
[1674060252225,20.4844,1506.0,1505.8,0.265335]
[1674060252588,20.4844,1506.0,1505.5,0.004]
[1674060252589,0.4981,1505.9,1505.5,0.004]
[1674060252814,0.4981,1505.9,1505.0,0.0708491]
[1674060252815,4.196,1505.6,1505.0,0.0348491]
[1674060252949,2.085,1505.1,1505.0,0.0048491]
[1674060253316,2.085,1505.1,1504.9,1.0]
[1674060253529,0.066,1505.2,1505.1,2.46142313]
[1674060253681,3.06600001,1505.3,1505.1,2.46142313]
[1674060253891,0.066,1505.5,1505.3,0.00966267]
[1674060254156,1.251,1505.8,1505.4,15.14105]
[1674060254157,1.191,1505.8,1505.4,15.14105]
[1674060254306,1.191,1505.8,1505.7,8.0]
[1674060254520,1.191,1505.8,1505.7,14.70742]
[1674060254521,0.0594,1505.8,1505.7,14.70742]
[1674060254793,1.0,1506.2,1505.7,8.066]
[1674060255102,1.0,1506.2,1506.0,8.0]
[1674060255318,0.06,1506.7,1506.1,19.91898]
[1674060255525,0.014,1507.0,1506.5,8.0]
[1674060255841,0.014,1507.0,1506.7,8.0]
[1674060256146,0.014,1507.0,1506.7,8.066]
[1674060256380,18.53796546,1507.4,1506.9,8.0]
[1674060256537,0.066,1507.4,1507.2,8.0]
[1674060256726,1.9105,1507.8,1507.2,0.066]
[1674060256727,8.73342,1507.6,1507.2,0.066]
[1674060256936,8.73342,1507.6,1506.7,0.56119484]
[1674060256937,8.71804,1507.4,1506.7,0.56119484]
[1674060257195,2.1,1507.2,1506.4,0.126]
[1674060257486,6.63637,1506.9,1506.2,0.066]
[1674060257651,6.63637,1506.9,1506.2,0.94262922]
[1674060257652,2.084,1506.7,1506.2,0.94262922]
[1674060257809,8.7299,1506.5,1505.8,1.112]
[1674060258021,2.092,1506.3,1505.8,1.004]
[1674060258293,2.092,1506.3,1505.8,4.906]
[1674060258294,2.1,1506.1,1505.8,4.906]
[1674060258648,0.86985146,1506.1,1505.8,1.0]
[1674060258981,0.066,1506.2,1505.8,6.64085]
[1674060259193,0.066,1506.6,1506.1,8.0]
[1674060259405,0.066,1506.7,1506.1,8.066]
[1674060259630,9.23439,1506.8,1506.1,0.62719484]
[1674060259809,9.23439,1506.8,1505.9,0.01694]
[1674060259810,6.63733,1506.7,1506.2,8.0]
[1674060260021,0.066,1506.7,1506.2,6.70497]
[1674060260399,1.0,1506.4,1506.2,0.066]
[1674060260542,1.0,1506.4,1506.2,0.56119484]
[1674060260750,1.0,1506.4,1506.2,8.0]
[1674060261008,1.0,1506.4,1506.2,8.62719484]
[1674060261195,2.424,1506.7,1506.2,0.066]
[1674060261540,0.57524751,1506.6,1506.0,0.066]
[1674060261754,0.066,1506.8,1506.4,8.0]
[1674060261967,6.63575,1507.0,1506.5,8.0]
[1674060261968,0.066,1507.0,1506.5,8.0]
[1674060262120,0.066,1507.3,1506.8,8.0]
[1674060262324,6.69365,1507.5,1506.8,8.0]
[1674060262325,0.066,1507.5,1507.1,8.0]
[1674060262591,1.322,1507.8,1507.1,8.066]
[1674060262901,6.63179,1507.9,1507.1,8.066]
[1674060262902,0.016,1507.7,1507.1,8.066]
[1674060263128,0.016,1507.7,1507.1,6.70119]
[1674060263291,0.016,1507.7,1507.1,14.70118]
[1674060263737,0.016,1507.7,1507.3,8.0]
[1674060263919,6.63133,1508.0,1507.3,8.066]
[1674060263920,0.066,1508.0,1507.3,8.066]
[1674060264129,0.066,1508.1,1507.5,8.0]
[1674060264422,7.98855,1508.2,1507.6,8.0]
[1674060264423,6.69643,1508.2,1507.6,8.0]
[1674060264638,0.066,1508.2,1507.6,0.09359]
[1674060264846,7.12733,1508.3,1507.6,0.02759]
[1674060265092,1.0,1507.9,1507.6,8.02759]
[1674060265329,1.0,1507.9,1507.8,8.0]
[1674060265539,1.0,1507.9,1507.8,0.253]
[1674060265694,0.066,1508.3,1507.6,0.02759]
[1674060266018,0.066,1508.3,1507.9,8.0]
[1674060266019,1.0,1508.3,1507.9,8.0]
[1674060266227,1.0,1508.3,1507.9,0.066]
[1674060266440,1.0,1508.3,1507.8,0.81271348]
[1674060266640,1.0,1508.3,1507.7,0.066]
[1674060266845,1.0,1508.4,1507.8,8.0]
[1674060267091,7.19243,1508.5,1507.8,8.0]
[1674060267092,7.19243,1508.5,1507.8,8.066]
[1674060267308,0.066,1508.5,1508.0,8.0]
[1674060267470,1.0,1508.5,1508.0,8.066]
[1674060267684,0.04737162,1508.7,1508.0,8.066]
[1674060267945,0.4972,1508.6,1508.0,8.066]
[1674060268683,0.72388216,1508.6,1508.0,8.85726358]
[1674060268899,0.4973,1508.5,1508.1,1.0]
[1674060269087,9.22611,1508.6,1508.1,1.0]
[1674060269306,2.092,1508.4,1508.0,1.0]
[1674060269630,6.63108,1508.1,1507.6,0.126]
[1674060269806,0.4974,1508.0,1507.4,0.066]
[1674060270024,0.4974,1508.0,1507.2,16.07665]
[1674060270235,0.4974,1508.0,1507.3,1.0]
[1674060270591,7.12876,1508.0,1507.3,1.0]
[1674060270799,0.712876,1507.9,1507.2,8.066]
[1674060271013,7.1297,1507.8,1507.2,8.066]
[1674060271183,2.092,1507.7,1507.2,0.066]
[1674060271386,0.4976,1507.6,1506.9,0.066]
[1674060271769,13.76378,1507.6,1506.8,0.066]
[1674060272062,2.092,1507.3,1506.8,1.0]
[1674060272284,2.1,1507.1,1506.8,1.0]
[1674060272595,7.1335,1507.0,1506.8,1.0]
[1674060272911,7.1335,1507.0,1506.3,0.126]
[1674060272912,7.1995,1507.0,1506.3,0.126]
[1674060273070,2.092,1506.9,1506.0,6.70608]
[1674060273282,0.4978,1506.8,1506.4,8.0]
[1674060273647,0.066,1507.0,1506.6,8.0]
[1674060273806,0.066,1507.0,1506.8,8.0]
[1674060273807,0.004,1507.0,1506.8,8.0]
[1674060274018,0.4977,1507.2,1506.8,8.066]
[1674060274280,7.13255,1507.2,1506.8,0.066]
[1674060274485,2.805255,1507.1,1506.4,0.05]
[1674060274808,2.085,1506.6,1506.4,0.012]
[1674060274977,14.7737,1506.5,1505.8,1.0]
[1674060275174,2.1,1506.3,1505.7,11.326]
[1674060275385,0.498,1506.2,1505.7,0.066]
[1674060275708,7.13684,1506.3,1505.5,0.066]
[1674060275932,7.13684,1506.3,1505.4,6.82577475]
[1674060275933,1.587,1506.2,1505.4,0.24934475]
[1674060276162,0.4981,1506.1,1505.4,0.18334475]
[1674060276329,1.587,1506.0,1505.4,0.18334475]
[1674060276541,1.587,1505.5,1505.4,0.18334475]
[1674060276796,8.72761,1505.5,1504.9,0.066]
[1674060277011,1.578,1505.2,1504.8,0.2656]
[1674060277178,0.4984,1505.1,1504.8,0.2656]
[1674060277389,1.587,1505.0,1504.7,1.0]
[1674060277711,1.578,1504.8,1504.3,1.46819032]
[1674060277942,1.578,1504.8,1504.0,0.066]
[1674060277943,0.4985,1504.7,1504.0,0.066]
[1674060278283,1.587,1504.6,1503.9,2.44512956]
[1674060278422,1.587,1504.6,1503.9,2.38112956]
[1674060278423,1.578,1504.3,1503.9,2.38112956]
[1674060278644,0.4986,1504.4,1504.3,1.84691602]
[1674060278957,0.066,1504.6,1504.4,0.83748784]
[1674060279328,0.126,1505.2,1504.7,1.50085198]
[1674060279479,1.06,1505.7,1504.5,2.04719484]
[1674060279696,0.06,1505.6,1504.5,0.07307]
[1674060279939,0.03,1505.5,1504.6,11.82119484]
[1674060280187,1.48,1505.9,1504.7,6.64552]
[1674060280374,6.64235,1505.5,1504.7,0.126]
[1674060280582,13.28674,1505.3,1504.7,0.62720392]
[1674060280915,13.28674,1505.3,1504.6,1.0]
[1674060280916,8.22305,1504.9,1504.6,1.0]
[1674060281123,8.22305,1504.9,1504.4,1.46148784]
[1674060281124,1.587,1504.7,1504.4,1.34948784]
[1674060281458,0.4985,1504.8,1503.9,2.43912956]
[1674060281459,1.587,1504.5,1503.9,2.43912956]
[1674060281611,1.578,1504.0,1503.7,0.05]
[1674060281820,1.578,1503.8,1503.1,0.21259469]
[1674060282083,1.585,1503.3,1503.1,0.21259469]
[1674060282297,0.499,1503.2,1502.8,0.68543968]
[1674060282445,0.499,1503.2,1502.5,1.3024227]
[1674060282446,1.578,1502.9,1502.5,1.3024227]
[1674060282659,1.578,1502.9,1502.0,1.46370154]
[1674060282660,1.578,1502.6,1502.1,0.06]
[1674060282865,0.4993,1502.5,1502.0,1.41370154]
[1674060283308,1.58,1502.3,1502.0,1.41370154]
[1674060283654,7.22113,1502.5,1502.0,1.36370154]
[1674060283819,6.65481,1502.7,1502.0,0.62720392]
[1674060283820,6.54024094,1502.7,1502.0,0.62720392]
[1674060284032,6.54024094,1502.7,1501.7,0.14315655]
[1674060284033,1.587,1502.2,1501.7,0.20315655]
[1674060284362,1.449,1502.5,1501.7,0.14315655]
[1674060284363,0.126,1502.5,1501.7,0.14315655]
[1674060284570,6.71423,1502.9,1501.8,1.25440784]
[1674060284761,0.066,1502.9,1501.8,6.65825]
[1674060284972,0.066,1502.9,1501.8,0.75320392]
[1674060284973,1.587,1502.1,1501.8,0.75320392]
[1674060285181,1.385,1502.8,1501.8,0.57720392]
[1674060285182,0.92113617,1502.6,1501.8,0.57720392]
[1674060285448,2.385,1502.8,1501.9,0.014]
[1674060285449,1.126,1502.8,1501.9,0.014]
[1674060285658,1.052,1502.8,1501.8,0.59120392]
[1674060285814,1.052,1502.8,1501.8,0.002]
[1674060285815,6.65536,1502.6,1501.8,0.002]
[1674060286023,0.066,1502.6,1501.9,0.4995]
[1674060286390,0.066,1502.7,1502.0,0.62546809]
[1674060286610,1.587,1502.7,1502.0,0.014]
[1674060286820,0.06,1502.8,1502.0,8.0]
[1674060287138,3.626,1503.2,1502.5,8.0]
[1674060287285,0.004,1503.2,1502.7,8.0]
[1674060287561,3.566,1503.6,1502.8,0.4992]
[1674060287765,0.066,1503.7,1503.2,8.0]
[1674060288024,1.367,1504.2,1503.2,8.0]
[1674060288025,1.0,1504.6,1503.6,11.0]
[1674060288246,1.0,1504.6,1504.5,1.58]
[1674060288429,18.50142242,1505.2,1504.5,8.72532]
[1674060288430,18.53142242,1505.2,1504.5,8.72532]
[1674060288647,0.044,1505.2,1505.0,1.014]
[1674060288859,0.76405493,1505.8,1505.1,0.4984]
[1674060289199,0.76405493,1505.8,1505.2,0.044]
[1674060289503,0.76405493,1505.8,1505.1,0.066]
[1674060289660,0.76405493,1505.8,1505.2,1.11338734]
[1674060289877,0.76405493,1505.8,1505.2,1.15738734]
[1674060289878,0.84046042,1505.8,1505.2,1.15738734]
[1674060290099,0.84046042,1505.8,1505.3,0.23]
[1674060290515,0.84046042,1505.8,1505.3,0.0394931]
[1674060290516,0.76405493,1505.8,1505.3,0.0394931]
[1674060290725,0.76405493,1505.8,1505.0,0.4984]
[1674060290934,0.76405493,1505.8,1504.9,0.4985]
[1674060291211,0.76405493,1505.8,1504.7,0.126]
[1674060291212,7.13985,1505.7,1504.7,0.126]
[1674060291342,7.26385,1505.7,1504.4,3.825607]
[1674060291547,0.726385,1505.6,1504.4,0.325607]
[1674060291766,0.4983,1505.5,1504.4,14.528607]
[1674060292037,0.126,1505.6,1504.9,1.576]
[1674060292182,0.76405493,1505.8,1504.8,12.29]
[1674060292393,6.64207,1505.6,1504.8,0.066]
[1674060292735,6.64207,1505.6,1505.1,8.0]
[1674060292736,0.066,1505.6,1505.1,8.0]
[1674060292949,0.76405493,1505.8,1505.2,0.4984]
[1674060293289,0.76405493,1505.8,1505.3,6.64305]
[1674060293443,0.10825493,1505.8,1505.3,0.066]
[1674060293656,0.70517348,1505.1,1504.9,1.03252616]
[1674060293903,7.348e-05,1505.1,1504.9,0.97252616]
[1674060294112,7.348e-05,1505.1,1504.7,0.61456009]